fUSD/lending_fUSD_20240119
["ID","MTS","AMOUNT","RATE_DAILY","PERIOD"]
[312170253,1705678242976,-500.0,0.00021917,2]
[312170255,1705678242986,-500.0,0.00021917,2]
[312170257,1705678242996,-500.0,0.00021917,2]
[312170259,1705678243005,-292.0907751,0.00021917,2]
[312170261,1705678243016,-588.93,0.00021917,2]
[312170263,1705678243026,-500.0,0.00021917,2]
[312170266,1705678243039,-500.0,0.00021917,2]
[312170267,1705678243048,-500.0,0.00021917,2]
[312170270,1705678243060,-829.52,0.00021917,2]
[312170272,1705678243069,-2495.55,0.00021917,2]
[312170274,1705678243079,-788.2,0.00021917,2]
[312170276,1705678243088,-731.33,0.00021917,2]
[312170278,1705678243099,-500.0,0.00021917,2]
[312170280,1705678243109,-500.0,0.00021917,2]
[312170282,1705678243121,-500.0,0.00021917,2]
[312170284,1705678243132,-500.0,0.00021917,2]
[312170286,1705678243142,-500.0,0.00021917,2]
[312170288,1705678243152,-500.0,0.00021917,2]
[312170290,1705678243161,-634.89,0.00021917,2]
[312170292,1705678243170,-244.37377621,0.00021917,2]
[312170294,1705678243180,-791.03,0.00021917,2]
[312170296,1705678243189,-500.0,0.00021917,2]
[312170298,1705678243199,-500.0,0.00021917,2]
[312170300,1705678243209,-1759.05,0.00021917,2]
[312170302,1705678243219,-500.0,0.00021917,2]
[312170304,1705678243228,-500.0,0.00021917,2]
[312170306,1705678243238,-645.26,0.00021917,2]
[312170308,1705678243247,-500.0,0.00021917,2]
[312170310,1705678243257,-500.0,0.00021917,2]
[312170312,1705678243267,-687.51,0.00021917,2]
[312170314,1705678243276,-500.0,0.00021917,2]
[312170316,1705678243286,-500.0,0.00021917,2]
[312170318,1705678243296,-542.98,0.00021917,2]
[312170320,1705678243308,-713.71,0.00021917,2]
[312170322,1705678243318,-684.71,0.00021917,2]
[312170324,1705678243328,-500.0,0.00021917,2]
[312170326,1705678243338,-911.28,0.00021917,2]
[312170328,1705678243348,-500.0,0.00021917,2]
[312170331,1705678243359,-616.72,0.00021917,2]
[312170333,1705678243368,-500.0,0.00021917,2]
[312170335,1705678243378,-500.0,0.00021917,2]
[312170337,1705678243388,-500.0,0.00021917,2]
[312170339,1705678243397,-500.0,0.00021917,2]
[312170341,1705678243407,-577.21,0.00021917,2]
[312170343,1705678243417,-889.99,0.00021917,2]
[312170345,1705678243427,-500.0,0.00021917,2]
[312170347,1705678243443,-508.68,0.00021917,2]
[312170349,1705678243452,-500.0,0.00021917,2]
[312170350,1705678243463,-549.42,0.00021917,2]
[312170352,1705678243473,-957.59,0.00021917,2]
[312170354,1705678243483,-500.0,0.00021917,2]
[312170356,1705678243493,-1588.65,0.00021917,2]
[312170357,1705678243504,-500.0,0.00021917,2]
[312170359,1705678243514,-500.0,0.00021917,2]
[312170361,1705678243524,-500.0,0.00021917,2]
[312170363,1705678243534,-500.0,0.00021917,2]
[312170364,1705678243545,-500.0,0.00021917,2]
[312170366,1705678243555,-874.67,0.00021917,2]
[312170368,1705678243566,-500.0,0.00021917,2]
[312170370,1705678243576,-500.0,0.00021917,2]
[312170372,1705678243585,-500.0,0.00021917,2]
[312170373,1705678243595,-500.0,0.00021917,2]
[312170375,1705678243605,-500.0,0.00021917,2]
[312170377,1705678243615,-500.0,0.00021917,2]
[312170379,1705678243625,-500.0,0.00021917,2]
[312170381,1705678243635,-500.0,0.00021917,2]
[312170382,1705678243646,-500.0,0.00021917,2]
[312170384,1705678243656,-973.68,0.00021917,2]
[312170386,1705678243666,-2586.47,0.00021917,2]
[312170388,1705678243678,-512.93,0.00021917,2]
[312170390,1705678243689,-500.0,0.00021917,2]
[312170392,1705678243698,-798.26,0.00021917,2]
[312170393,1705678243708,-500.0,0.00021917,2]
[312170395,1705678243717,-163.02,0.00021917,2]
[312170397,1705678243727,-1209.83,0.00021917,2]
[312170398,1705678243737,-642.84,0.00021917,2]
[312170400,1705678243747,-500.0,0.00021917,2]
[312170402,1705678243757,-500.0,0.00021917,2]
[312170404,1705678243767,-936.38,0.00021917,2]
[312170406,1705678243778,-500.0,0.00021917,2]
[312170407,1705678243789,-1155.52,0.00021917,2]
[312170409,1705678243800,-508.85,0.00021917,2]
[312170411,1705678243814,-500.0,0.00021917,2]
[312170413,1705678243825,-500.0,0.00021917,2]
[312170414,1705678243835,-874.6,0.00021917,2]
[312170416,1705678243846,-1101.12,0.00021917,2]
[312170418,1705678243857,-1683.81,0.00021917,2]
[312170420,1705678243867,-500.0,0.00021917,2]
[312170422,1705678243878,-1902.57,0.00021917,2]
[312170424,1705678243888,-500.0,0.00021917,2]
[312170425,1705678243899,-1649.75,0.00021917,2]
[312170427,1705678243910,-500.0,0.00021917,2]
[312170429,1705678243921,-500.0,0.00021917,2]
[312170431,1705678243932,-1427.46,0.00021917,2]
[312170433,1705678243942,-500.0,0.00021917,2]
[312170434,1705678243953,-500.0,0.00021917,2]
[312170436,1705678243965,-201.0,0.00021917,2]
[312170438,1705678243976,-693.46,0.00021917,2]
[312170440,1705678243987,-782.46,0.00021917,2]
[312170442,1705678243998,-2523.58,0.00021917,2]
[312170444,1705678244008,-798.73,0.00021917,2]
[312170446,1705678244021,-500.0,0.00021917,2]
[312170448,1705678244031,-2927.77,0.00021917,2]
[312170450,1705678244041,-500.0,0.00021917,2]
[312170451,1705678244052,-500.0,0.00021917,2]
[312170453,1705678244067,-500.0,0.00021917,2]
[312170455,1705678244078,-545.17116169,0.00021917,2]
[312170457,1705678244093,-558.05,0.00021917,2]
[312170459,1705678244107,-1720.68,0.00021917,2]
[312170461,1705678244117,-1245.53,0.00021917,2]
[312170463,1705678244128,-500.0,0.00021917,2]
[312170465,1705678244139,-1313.85,0.00021917,2]
[312170467,1705678244150,-500.0,0.00021917,2]
[312170469,1705678244161,-500.0,0.00021917,2]
[312170471,1705678244173,-1065.88,0.00021917,2]
[312170473,1705678244184,-500.0,0.00021917,2]
[312170474,1705678244194,-500.0,0.00021917,2]
[312170476,1705678244205,-1751.08,0.00021917,2]
[312170478,1705678244215,-500.0,0.00021917,2]
[312170480,1705678244226,-652.01,0.00021917,2]
[312170482,1705678244237,-500.0,0.00021917,2]
[312170484,1705678244247,-500.0,0.00021917,2]
[312170486,1705678244257,-616.53,0.00021917,2]
[312170487,1705678244267,-500.0,0.00021917,2]
[312170489,1705678244277,-854.13,0.00021917,2]
[312170491,1705678244287,-4654.98,0.00021917,2]
[312170493,1705678244298,-1355.37,0.00021917,2]
[312170495,1705678244311,-500.0,0.00021917,2]
[312170497,1705678244322,-688.22,0.00021917,2]
[312170499,1705678244333,-500.0,0.00021917,2]
[312170500,1705678244343,-500.0,0.00021917,2]
[312170502,1705678244354,-861.68,0.00021917,2]
[312170504,1705678244365,-614.59,0.00021917,2]
[312170506,1705678244375,-723.49,0.00021917,2]
[312170508,1705678244386,-500.0,0.00021917,2]
[312170510,1705678244397,-899.05,0.00021917,2]
[312170512,1705678244408,-500.0,0.00021917,2]
[312170514,1705678244418,-4897.22,0.00021917,2]
[312170515,1705678244429,-500.0,0.00021917,2]
[312170517,1705678244440,-1831.94,0.00021917,2]
[312170519,1705678244451,-852.38,0.00021917,2]
[312170521,1705678244462,-500.0,0.00021917,2]
[312170522,1705678244473,-705.55,0.00021917,2]
[312170523,1705678244484,-715.8,0.00021917,2]
[312170524,1705678244495,-1635.03,0.00021917,2]
[312170525,1705678244506,-544.37,0.00021917,2]
[312170526,1705678244517,-952.15,0.00021917,2]
[312170527,1705678244528,-527.95807681,0.00021917,2]
[312170528,1705678244539,-1958.54,0.00021917,2]
[312170529,1705678244550,-757.76,0.00021917,2]
[312170530,1705678244568,-500.0,0.00021917,2]
[312170531,1705678244579,-975.91,0.00021917,2]
[312170533,1705678244589,-500.0,0.00021917,2]
[312170535,1705678244599,-2022.58,0.00021917,2]
[312170538,1705678244612,-500.0,0.00021917,2]
[312170540,1705678244622,-701.67,0.00021917,2]
[312170542,1705678244632,-6494.5,0.00021917,2]
[312170544,1705678244642,-1219.57,0.00021917,2]
[312170546,1705678244651,-1253.16,0.00021917,2]
[312170548,1705678244662,-500.0,0.00021917,2]
[312170550,1705678244671,-500.0,0.00021917,2]
[312170552,1705678244681,-1300.08,0.00021917,2]
[312170554,1705678244690,-3234.69,0.00021917,2]
[312170556,1705678244700,-500.0,0.00021917,2]
[312170558,1705678244710,-500.0,0.00021917,2]
[312170560,1705678244721,-500.0,0.00021917,2]
[312170562,1705678244733,-565.57,0.00021917,2]
[312170564,1705678244743,-9572.5,0.00021917,2]
[312170566,1705678244754,-7806.92,0.00021917,2]
[312170568,1705678244764,-500.0,0.00021917,2]
[312170570,1705678244774,-816.31,0.00021917,2]
[312170572,1705678244784,-2361.38,0.00021917,2]
[312170575,1705678244794,-230.92295168,0.00021917,2]
[312170577,1705678244808,-500.0,0.00021917,2]
[312170579,1705678244818,-1402.34,0.00021917,2]
[312170581,1705678244828,-500.0,0.00021917,2]
[312170583,1705678244837,-2376.67,0.00021917,2]
[312170585,1705678244847,-500.0,0.00021917,2]
[312170587,1705678244856,-521.51998178,0.00021917,2]
[312170589,1705678244867,-531.07488806,0.00021917,2]
[312170591,1705678244876,-500.0,0.00021917,2]
[312170593,1705678244886,-534.94,0.00021917,2]
[312170595,1705678244897,-610.32,0.00021917,2]
[312170597,1705678244906,-500.0,0.00021917,2]
[312170599,1705678244916,-591.69,0.00021917,2]
[312170601,1705678244926,-500.0,0.00021917,2]
[312170603,1705678244936,-524.62950062,0.00021917,2]
[312170605,1705678244946,-717.79,0.00021917,2]
[312170607,1705678244956,-623.99,0.00021917,2]
[312170609,1705678244967,-1362.82,0.00021917,2]
[312170611,1705678244977,-500.0,0.00021917,2]
[312170613,1705678244986,-598.75,0.00021917,2]
[312170615,1705678244996,-500.0,0.00021917,2]
[312170617,1705678245006,-500.0,0.00021917,2]
[312170620,1705678245017,-19099.25,0.00021917,2]
[312170622,1705678245027,-4157.3,0.00021917,2]
[312170624,1705678245040,-500.0,0.00021917,2]
[312170626,1705678245049,-2771.57,0.00021917,2]
[312170628,1705678245068,-500.0,0.00021917,2]
[312170630,1705678245079,-500.0,0.00021917,2]
[312170632,1705678245089,-1045.96,0.00021917,2]
[312170634,1705678245100,-500.0,0.00021917,2]
[312170637,1705678245110,-12697.96,0.00021917,2]
[312170639,1705678245119,-500.0,0.00021917,2]
[312170641,1705678245129,-571.57,0.00021917,2]
[312170643,1705678245139,-511.47,0.00021917,2]
[312170645,1705678245149,-1964.65,0.00021917,2]
[312170647,1705678245159,-1098.53,0.00021917,2]
[312170649,1705678245169,-500.0,0.00021917,2]
[312170651,1705678245179,-408.98986228,0.00021917,2]
[312170653,1705678245189,-1348.5,0.00021917,2]
[312170667,1705678245317,-2100.0,0.00021917,2]
[312170669,1705678245328,-949.39,0.00021917,2]
[312170671,1705678245337,-2445.96,0.00021917,2]
[312170673,1705678245348,-500.0,0.00021917,2]
[312170675,1705678245358,-942.89,0.00021917,2]
[312170677,1705678245368,-1269.53,0.00021917,2]
[312170679,1705678245378,-500.0,0.00021917,2]
[312170681,1705678245388,-529.86,0.00021917,2]
[312170683,1705678245397,-500.0,0.00021917,2]
[312170685,1705678245407,-610.34,0.00021917,2]
[312170688,1705678245416,-1371.23,0.00021917,2]
[312170690,1705678245426,-769.96,0.00021917,2]
[312170693,1705678245436,-2348.96,0.00021917,2]
[312170696,1705678245445,-1842.12,0.00021917,2]
[312170698,1705678245455,-500.0,0.00021917,2]
[312170701,1705678245465,-593.13012172,0.00021917,2]
[312170704,1705678245474,-500.0,0.00021917,2]
[312170706,1705678245484,-500.0,0.00021917,2]
[312170709,1705678245494,-500.0,0.00021917,2]
[312170712,1705678245504,-681.74,0.00021917,2]
[312170714,1705678245515,-2360.64,0.00021917,2]
[312170717,1705678245525,-500.0,0.00021917,2]
[312170719,1705678245536,-566.01,0.00021917,2]
[312170721,1705678245546,-3098.94,0.00021917,2]
[312170723,1705678245557,-677.65,0.00021917,2]
[312170725,1705678245566,-848.48,0.00021917,2]
[312170727,1705678245576,-676.33,0.00021917,2]
[312170729,1705678245585,-1127.71,0.00021917,2]
[312170731,1705678245594,-1350.13,0.00021917,2]
[312170733,1705678245604,-1745.76,0.00021917,2]
[312170735,1705678245613,-500.0,0.00021917,2]
[312170737,1705678245622,-1044.1,0.00021917,2]
[312170740,1705678245632,-500.0,0.00021917,2]
[312170742,1705678245641,-1150.91,0.00021917,2]
[312170744,1705678245650,-1230.61,0.00021917,2]
[312170746,1705678245660,-1395.71,0.00021917,2]
[312170748,1705678245670,-576.08,0.00021917,2]
[312170750,1705678245680,-500.0,0.00021917,2]
[312170752,1705678245689,-500.0,0.00021917,2]
[312170754,1705678245699,-1106.0,0.00021917,2]
[312170756,1705678245708,-1856.19,0.00021917,2]
[312170758,1705678245717,-1448.18,0.00021917,2]
[312170760,1705678245726,-500.0,0.00021917,2]
[312170762,1705678245735,-500.0,0.00021917,2]
[312170764,1705678245744,-1237.53,0.00021917,2]
[312170767,1705678245753,-739.48,0.00021917,2]
[312170771,1705678245763,-975.36,0.00021917,2]
[312170773,1705678245772,-2784.75,0.00021917,2]
[312170776,1705678245782,-744.99,0.00021917,2]
[312170778,1705678245791,-2811.82,0.00021917,2]
[312170780,1705678245801,-500.0,0.00021917,2]
[312170782,1705678245813,-500.0,0.00021917,2]
[312170784,1705678245823,-500.0,0.00021917,2]
[312170786,1705678245832,-500.0,0.00021917,2]
[312170789,1705678245842,-500.0,0.00021917,2]
[312170792,1705678245853,-2078.94,0.00021917,2]
[312170795,1705678245863,-10549.01,0.00021917,2]
[312170798,1705678245872,-500.0,0.00021917,2]
[312170801,1705678245882,-500.0,0.00021917,2]
[312170804,1705678245892,-500.0,0.00021917,2]
[312170806,1705678245902,-1243.23,0.00021917,2]
[312170810,1705678245911,-1479.97,0.00021917,2]
[312170814,1705678245922,-5004.8,0.00021917,2]
[312170818,1705678245931,-730.99,0.00021917,2]
[312170821,1705678245941,-1125.39,0.00021917,2]
[312170823,1705678245951,-743.57,0.00021917,2]
[312170825,1705678245960,-716.2,0.00021917,2]
[312170827,1705678245969,-500.0,0.00021917,2]
[312170829,1705678245979,-500.0,0.00021917,2]
[312170831,1705678245989,-1150.08,0.00021917,2]
[312170833,1705678245999,-547.1,0.00021917,2]
[312170835,1705678246009,-1113.73,0.00021917,2]
[312170838,1705678246020,-500.0,0.00021917,2]
[312170839,1705678246030,-826.5,0.00021917,2]
[312170841,1705678246042,-500.0,0.00021917,2]
[312170843,1705678246051,-1154.17,0.00021917,2]
[312170845,1705678246064,-3340.4,0.00021917,2]
[312170848,1705678246074,-500.0,0.00021917,2]
[312170850,1705678246084,-693.95,0.00021917,2]
[312170852,1705678246094,-1747.58,0.00021917,2]
[312170854,1705678246104,-776.7,0.00021917,2]
[312170856,1705678246115,-711.65,0.00021917,2]
[312170858,1705678246124,-2672.86,0.00021917,2]
[312170859,1705678246134,-500.0,0.00021917,2]
[312170862,1705678246143,-1055.87,0.00021917,2]
[312170864,1705678246153,-517.38,0.00021917,2]
[312170866,1705678246163,-4742.2,0.00021917,2]
[312170868,1705678246172,-722.82,0.00021917,2]
[312170870,1705678246182,-5753.61,0.00021917,2]
[312170872,1705678246192,-500.0,0.00021917,2]
[312170874,1705678246201,-777.57,0.00021917,2]
[312170876,1705678246211,-517.67,0.00021917,2]
[312170878,1705678246220,-1381.2,0.00021917,2]
[312170880,1705678246230,-500.0,0.00021917,2]
[312170882,1705678246238,-1473.76,0.00021917,2]
[312170884,1705678246247,-500.0,0.00021917,2]
[312170886,1705678246256,-500.0,0.00021917,2]
[312170887,1705678246265,-1037.7,0.00021917,2]
[312170889,1705678246275,-500.0,0.00021917,2]
[312170891,1705678246284,-2333.34,0.00021917,2]
[312170893,1705678246293,-500.0,0.00021917,2]
[312170895,1705678246303,-570.31,0.00021917,2]
[312170897,1705678246314,-542.82,0.00021917,2]
[312170899,1705678246325,-1929.89,0.00021917,2]
[312170901,1705678246335,-564.38,0.00021917,2]
[312170903,1705678246345,-2379.06,0.00021917,2]
[312170905,1705678246356,-500.0,0.00021917,2]
[312170907,1705678246366,-500.0,0.00021917,5]
[312170910,1705678246376,-859.94,0.00021917,2]
[312170911,1705678246386,-648.08,0.00021917,2]
[312170913,1705678246397,-680.47,0.00021917,2]
[312170917,1705678246407,-1380.56,0.00021917,2]
[312170921,1705678246417,-1026.83,0.00021917,2]
[312170924,1705678246426,-1362.21,0.00021917,2]
[312170927,1705678246436,-745.48,0.00021917,2]
[312170931,1705678246445,-2959.43,0.00021917,2]
[312170933,1705678246455,-688.12,0.00021917,2]
[312170937,1705678246465,-4341.8,0.00021917,2]
[312170939,1705678246475,-500.0,0.00021917,2]
[312170941,1705678246486,-500.0,0.00021917,2]
[312170943,1705678246495,-1036.56,0.00021917,2]
[312170945,1705678246506,-1109.11,0.00021917,2]
[312170947,1705678246515,-1406.22,0.00021917,2]
[312170949,1705678246525,-503.34,0.00021917,2]
[312170951,1705678246535,-500.0,0.00021917,2]
[312170954,1705678246545,-500.0,0.00021917,2]
[312170956,1705678246554,-500.0,0.00021917,2]
[312170957,1705678246564,-500.0,0.00021917,2]
[312170958,1705678246573,-500.0,0.00021917,2]
[312170959,1705678246582,-833.62,0.00021917,2]
[312170960,1705678246591,-1148.48,0.00021917,2]
[312170961,1705678246600,-4679.12,0.00021917,2]
[312170962,1705678246609,-821.08,0.00021917,2]
[312170963,1705678246618,-766.81,0.00021917,2]
[312170964,1705678246627,-2555.85,0.00021917,2]
[312170965,1705678246636,-668.1,0.00021917,2]
[312170967,1705678246646,-787.79,0.00021917,2]
[312170969,1705678246655,-15389.13,0.00021917,2]
[312170971,1705678246663,-561.4,0.00021917,2]
[312170973,1705678246672,-1090.18,0.00021917,2]
[312170975,1705678246681,-500.0,0.00021917,2]
[312170977,1705678246691,-1440.08,0.00021917,2]
[312170979,1705678246700,-500.0,0.00021917,2]
[312170981,1705678246710,-500.0,0.00021917,2]
[312170983,1705678246719,-500.0,0.00021917,2]
[312170985,1705678246728,-500.0,0.00021917,2]
[312170987,1705678246738,-500.0,0.00021917,2]
[312170989,1705678246746,-928.69,0.00021917,2]
[312170991,1705678246756,-500.0,0.00021917,2]
[312170993,1705678246765,-661.75,0.00021917,2]
[312170995,1705678246774,-500.0,0.00021917,2]
[312170997,1705678246784,-500.0,0.00021917,2]
[312170999,1705678246793,-2099.71,0.00021917,2]
[312171001,1705678246803,-2891.79,0.00021917,2]
[312171003,1705678246814,-500.0,0.00021917,2]
[312171005,1705678246823,-855.2,0.00021917,2]
[312171007,1705678246832,-743.82,0.00021917,2]
[312171009,1705678246842,-500.0,0.00021917,2]
[312171011,1705678246852,-500.0,0.00021917,2]
[312171013,1705678246861,-500.0,0.00021917,2]
[312171015,1705678246871,-500.0,0.00021917,2]
[312171017,1705678246880,-500.0,0.00021917,2]
[312171019,1705678246890,-1258.67,0.00021917,2]
[312171021,1705678246900,-500.0,0.00021917,2]
[312171023,1705678246909,-250.0,0.00021918,2]
[312171025,1705678246919,-500.0,0.00021918,2]
[312171027,1705678246928,-1478.0343822,0.0002196,2]
[312171029,1705678246937,-550.0,0.00022,3]
[312171031,1705678246946,-1755.66648855,0.00022028,2]
[312171033,1705678246955,-153.14,0.00022047,2]
[312171035,1705678246965,-11127.45990611,0.0002207,2]
[312171037,1705678246974,-151.16,0.00022072,2]
[312171039,1705678246983,-378.62352867,0.00022082,2]
[312171041,1705678246994,-6768.97381998,0.00022082,2]
[312171043,1705678247004,-179.51479232,0.0002209,2]
[312171045,1705678247015,-169.8090897,0.00022091,2]
[312171047,1705678247028,-408.84,0.00022099,2]
[312171049,1705678247038,-300.0,0.00022099,2]
[312171051,1705678247047,-300.0,0.00022099,2]
[312171053,1705678247059,-300.0,0.00022099,2]
[312171055,1705678247069,-300.0,0.00022099,2]
[312171057,1705678247078,-300.0,0.00022099,2]
[312171059,1705678247087,-300.0,0.00022099,2]
[312171061,1705678247097,-300.0,0.00022099,2]
[312171063,1705678247107,-324.79163949,0.00022099,2]
[312171065,1705678247119,-500.0,0.00022099,2]
[312171067,1705678247128,-500.0,0.00022099,2]
[312171069,1705678247138,-500.0,0.00022099,2]
[312171071,1705678247148,-662683.91930807,0.000221,4]
[312171073,1705678247157,-11127.45990603,0.00022182,2]
[312171074,1705678247167,-696.42562311,0.00022189,2]
[312171076,1705678247176,-500.0,0.0002219,2]
[312171079,1705678247186,-500.0,0.0002219,2]
[312171080,1705678247196,-500.0,0.0002219,2]
[312171082,1705678247205,-500.0,0.0002219,2]
[312171084,1705678247215,-500.0,0.0002219,2]
[312171086,1705678247225,-500.0,0.0002219,2]
[312171088,1705678247234,-590.4,0.0002219,2]
[312171090,1705678247244,-830208.38163453,0.00022191,3]
[312171093,1705678247253,-500.0,0.00022191,2]
[312171095,1705678247263,-500.0,0.00022191,2]
[312171096,1705678247272,-500.0,0.00022191,2]
[312171098,1705678247281,-500.0,0.00022191,2]
[312171100,1705678247290,-500.0,0.00022191,2]
[312171101,1705678247300,-500.0,0.00022191,2]
[312171102,1705678247312,-500.0,0.00022191,2]
[312171103,1705678247321,-500.0,0.00022191,2]
[312171104,1705678247330,-500.0,0.00022191,2]
[312171105,1705678247339,-509.62,0.00022191,2]
[312171106,1705678247348,-500.0,0.00022191,2]
[312171107,1705678247358,-500.0,0.00022191,2]
[312171109,1705678247367,-500.0,0.00022191,2]
[312171111,1705678247377,-500.0,0.00022191,2]
[312171113,1705678247386,-500.0,0.00022191,2]
[312171114,1705678247396,-500.0,0.00022191,2]
[312171116,1705678247405,-500.0,0.00022191,2]
[312171117,1705678247415,-716.93,0.00022191,2]
[312171118,1705678247424,-500.0,0.00022191,2]
[312171119,1705678247434,-500.0,0.00022191,2]
[312171120,1705678247443,-500.0,0.00022191,2]
[312171121,1705678247453,-500.0,0.00022191,2]
[312171122,1705678247463,-500.0,0.00022191,2]
[312171123,1705678247472,-651.75,0.00022191,2]
[312171124,1705678247482,-500.0,0.00022191,2]
[312171125,1705678247492,-500.0,0.00022191,2]
[312171126,1705678247502,-747.07,0.00022191,2]
[312171127,1705678247511,-500.0,0.00022191,2]
[312171128,1705678247521,-500.0,0.00022191,2]
[312171129,1705678247531,-500.0,0.00022191,2]
[312171130,1705678247540,-500.0,0.00022191,2]
[312171131,1705678247549,-500.0,0.00022191,2]
[312171133,1705678247561,-500.0,0.00022191,2]
[312171135,1705678247571,-500.0,0.00022191,2]
[312171137,1705678247581,-500.0,0.00022191,2]
[312171138,1705678247590,-500.0,0.00022191,2]
[312171139,1705678247600,-500.0,0.00022191,2]
[312171141,1705678247610,-536.44,0.00022191,2]
[312171143,1705678247619,-500.0,0.00022191,2]
[312171145,1705678247628,-1000.0,0.00022191,10]
[312171147,1705678247637,-500.0,0.00022191,2]
[312171149,1705678247647,-500.0,0.00022191,2]
[312171151,1705678247656,-500.0,0.00022191,2]
[312171153,1705678247666,-500.0,0.00022191,2]
[312171155,1705678247675,-838.95,0.00022191,2]
[312171157,1705678247684,-500.0,0.00022191,2]
[312171159,1705678247693,-500.0,0.00022191,2]
[312171161,1705678247703,-500.0,0.00022191,2]
[312171163,1705678247712,-500.0,0.00022191,2]
[312171165,1705678247722,-500.0,0.00022191,2]
[312171167,1705678247731,-500.0,0.00022191,2]
[312171168,1705678247740,-500.0,0.00022191,2]
[312171170,1705678247749,-500.0,0.00022191,2]
[312171172,1705678247759,-500.0,0.00022191,2]
[312171174,1705678247768,-500.0,0.00022191,2]
[312171176,1705678247777,-500.0,0.00022191,2]
[312171178,1705678247787,-500.0,0.00022191,2]
[312171180,1705678247796,-500.0,0.00022191,2]
[312171182,1705678247808,-500.0,0.00022191,2]
[312171184,1705678247818,-500.0,0.00022191,2]
[312171186,1705678247828,-500.0,0.00022191,2]
[312171188,1705678247838,-500.0,0.00022191,2]
[312171189,1705678247847,-500.0,0.00022191,2]
[312171190,1705678247857,-500.0,0.00022191,2]
[312171191,1705678247866,-500.0,0.00022191,2]
[312171192,1705678247876,-500.0,0.00022191,2]
[312171193,1705678247885,-500.0,0.00022191,2]
[312171194,1705678247895,-500.0,0.00022191,2]
[312171195,1705678247905,-500.0,0.00022191,2]
[312171196,1705678247915,-732.74,0.00022191,2]
[312171197,1705678247925,-500.0,0.00022191,2]
[312171198,1705678247935,-500.0,0.00022191,2]
[312171199,1705678247945,-500.0,0.00022191,2]
[312171200,1705678247956,-500.0,0.00022191,2]
[312171201,1705678247965,-500.0,0.00022191,2]
[312171202,1705678247975,-500.0,0.00022191,2]
[312171203,1705678247986,-529.84,0.00022191,2]
[312171204,1705678247996,-418.51631339,0.00022191,2]
[312171205,1705678248006,-500.0,0.00022191,2]
[312171206,1705678248017,-500.0,0.00022191,2]
[312171207,1705678248027,-616.69,0.00022191,2]
[312171208,1705678248039,-500.0,0.00022191,2]
[312171209,1705678248049,-500.0,0.00022191,2]
[312171210,1705678248061,-500.0,0.00022191,2]
[312171211,1705678248070,-500.0,0.00022191,2]
[312171212,1705678248080,-500.0,0.00022191,2]
[312171213,1705678248089,-677.43,0.00022191,2]
[312171214,1705678248099,-500.0,0.00022191,2]
[312171215,1705678248109,-500.0,0.00022191,2]
[312171216,1705678248120,-608.76,0.00022191,2]